Workbook

Sheet Ch03==>>

Sheet 45
A1: Count | B1: =COUNT(B9:B13) -> 5 | C1: =COUNT(C9:C13) -> 5
A2: Count -1 | B2: =B1-1 -> 4 | C2: 4
A3: Mean | B3: =AVERAGE(B9:B13) -> 8 | C3: =AVERAGE(C9:C13) -> 46
A4: SD | B4: =_xlfn.STDEV.S(B9:B13) -> 5.431390246 | C4: =_xlfn.STDEV.S(C9:C13) -> 11.40175425
A5: Covariance | B5: =_xlfn.COVARIANCE.S(C9:C13,B9:B13) -> -60
A6: Coefficient of Correlation | B6: =CORREL(C9:C13,B9:B13) -> -0.9688768212 | C6: =B6=H21 -> TRUE
B8: xi | C8: yi | D8: xi - Xbar | E8: (xi - Xbar)^2 | F8: yi - Ybar | G8: (yi - Ybar)^2 | H8: (xi - Xbar)*(yi - Ybar)
B9: 4 | C9: 50 | D9: =B9-$B$3 -> -4 | E9: =D9^2 -> 16 | F9: =C9-$C$3 -> 4 | G9: =F9^2 -> 16 | H9: =D9*F9 -> -16
B10: 6 | C10: 50 | D10: =B10-$B$3 -> -2 | E10: =D10^2 -> 4 | F10: =C10-$C$3 -> 4 | G10: =F10^2 -> 16 | H10: -8
B11: 11 | C11: 40 | D11: =B11-$B$3 -> 3 | E11: 9 | F11: =C11-$C$3 -> -6 | G11: 36 | H11: -18
B12: 3 | C12: 60 | D12: =B12-$B$3 -> -5 | E12: 25 | F12: =C12-$C$3 -> 14 | G12: 196 | H12: -70
B13: 16 | C13: 30 | D13: =B13-$B$3 -> 8 | E13: 64 | F13: =C13-$C$3 -> -16 | G13: 256 | H13: -128
G15: Variancex | H15: =SUM(E9:E13)/$C$2 -> 29.5
G16: SDx | H16: =H15^(1/2) -> 5.431390246
G17: Variancey | H17: =SUM(G9:G13)/$C$2 -> 130
G18: SDy | H18: =H17^(1/2) -> 11.40175425
G19: Total (xi - Xbar)*(yi - Ybar) | H19: =SUM(H9:H13) -> -240
G20: Covariance | H20: =H19/B2 -> -60 | I20: Tells us there is a negative relationship, but because of the units we must go one step further and calculation rxy
G21: Coefficient of Correlation | H21: =H20/(H16*H18) -> -0.9688768212 | I21: tells us that there is a strong negative relationship between the two variables. As x increated, y decreases
C37: Xbar | D37: y | E37: x | F37: Yabr
C38: =$B$3 -> 8 | D38: 20 | E38: 0 | F38: =$C$3 -> 46
C39: 8 | D39: 70 | E39: 20 | F39: 46

Sheet 49
A1: Xbar | B1: =AVERAGE(B8:B34) -> 0.06814814815 | C1: 0.06330740741 | J1: Xbar | K1: =AVERAGE(K8:K34) -> 6.814814815 | L1: 6.330740741
A2: SD | B2: =_xlfn.STDEV.S(B8:B34) -> 0.009956457911 | C2: 0.02236578647 | J2: SD | K2: =_xlfn.STDEV.S(K8:K34) -> 0.9956457911 | L2: 2.236578647
A3: n | B3: =COUNT(B8:B34) -> 27
A4: n-1 | B4: =B3-1 -> 26
B6: x | C6: y | D6: (x-Xbar)*(y-Ybar) | E6: (x-Xbar)^2 | F6: (y - Ybar)^2 | K6: x | L6: y
A7: Metro Area | B7: Jobless Rate | C7: Delinquent Loans | D7: Deviation in x * Deviation in y | E7: x Deviation Squared | F7: y Deviation Squared | H7: Correlation Coefficient | J7: Metro Area | K7: Jobless Rate (%) | L7: Delinquent Loans (%) | N7: Correlation Coefficient
A8: Atlanta | B8: 0.071 | C8: 0.0702 | D8: =(B8-$B$1)*(C8-$C$1) -> 1.965665295e-05 | E8: =(B8-B$1)^2 -> 8.133058985e-06 | F8: =(C8-C$1)^2 -> 4.750783265e-05 | G8: a | H8: =CORREL(C8:C34,B8:B34) -> 0.4413239314 | I8: =H8=D38 -> TRUE | J8: Atlanta | K8: 7.1 | L8: 7.02 | N8: =CORREL(L8:L34,K8:K34) -> 0.4413239314
A9: Boston | B9: 0.052 | C9: 0.0531 | D9: =(B9-$B$1)*(C9-$C$1) -> 0.000164830727 | E9: =(B9-B$1)^2 -> 0.0002607626886 | F9: 0.000104191166 | J9: Boston | K9: 5.2 | L9: 5.31
A10: Charlotte | B10: 0.078 | C10: 0.0538 | D10: -9.366556927e-05 | E10: 9.705898491e-05 | F10: 9.039079561e-05 | H10: From our | J10: Charlotte | K10: 7.8 | L10: 5.38
A11: Chicago | B11: 0.078 | C11: 0.054 | D11: -9.16951989e-05 | E11: 9.705898491e-05 | F11: 8.662783265e-05 | H11: sample data, | J11: Chicago | K11: 7.8 | L11: 5.4
A12: Dallas | B12: 0.058 | C12: 0.05 | D12: 0.0001350455418 | E12: 0.0001029849108 | F12: 0.0001770870919 | H12: there does not | J12: Dallas | K12: 5.8 | L12: 5
A13: Denver | B13: 0.058 | C13: 0.0407 | D13: 0.0002294233196 | E13: 0.0001029849108 | F13: 0.0005110948697 | H13: seem to be a | J13: Denver | K13: 5.8 | L13: 4.07
A14: Detroit | B14: 0.093 | C14: 0.0653 | D14: 4.951961591e-05 | E14: 0.0006176145405 | F14: 3.97042524e-06 | H14: strong | J14: Detroit | K14: 9.3 | L14: 6.53
A15: Houston | B15: 0.057 | C15: 0.0557 | D15: 8.48085048e-05 | E15: 0.0001242812071 | F15: 5.787264746e-05 | H15: correlation | J15: Houston | K15: 5.7 | L15: 5.57
A16: Jacksonville | B16: 0.073 | C16: 0.0699 | D16: 3.198628258e-05 | E16: 2.354046639e-05 | F16: 4.346227709e-05 | H16: between | J16: Jacksonville | K16: 7.3 | L16: 6.99
A17: Las Vegas | B17: 0.076 | C17: 0.1112 | D17: 0.0003760455418 | E17: 6.16515775e-05 | F17: 0.002293700425 | H17: jobless rate | J17: Las Vegas | K17: 7.6 | L17: 11.12
A18: Los Angeles | B18: 0.082 | C18: 0.0756 | D18: 0.0001702751715 | E18: 0.0001918737997 | F18: 0.0001511078326 | H18: and delinquent | J18: Los Angeles | K18: 8.2 | L18: 7.56
A19: Miami | B19: 0.071 | C19: 0.1211 | D19: 0.0001648159122 | E19: 8.133058985e-06 | F19: 0.003339983759 | H19: loans. | J19: Miami | K19: 7.1 | L19: 12.11
A20: Minneapolis | B20: 0.063 | C20: 0.0439 | D20: 9.99122085e-05 | E20: 2.650342936e-05 | F20: 0.0003766474623 | H20: However, there | J20: Minneapolis | K20: 6.3 | L20: 4.39
A21: Nashville | B21: 0.066 | C21: 0.0478 | D21: 3.33122085e-05 | E21: 4.614540466e-06 | F21: 0.0002404796845 | H21: is a modest | J21: Nashville | K21: 6.6 | L21: 4.78
A22: New York | B22: 0.062 | C22: 0.0578 | D22: 3.386035665e-05 | E22: 3.779972565e-05 | F22: 3.033153635e-05 | H22: positive | J22: New York | K22: 6.2 | L22: 5.78
A23: Orange County | B23: 0.063 | C23: 0.0608 | D23: 1.29085048e-05 | E23: 2.650342936e-05 | F23: 6.287091907e-06 | H23: relationship so | J23: Orange County | K23: 6.3 | L23: 6.08
A24: Orlando | B24: 0.07 | C24: 0.1005 | D24: 6.887517147e-05 | E24: 3.429355281e-06 | F24: 0.001383288944 | H24: that you would | J24: Orlando | K24: 7 | L24: 10.05
A25: Philadelphia | B25: 0.062 | C25: 0.0475 | D25: 9.718628258e-05 | E25: 3.779972565e-05 | F25: 0.0002498741289 | H25: expect to have | J25: Philadelphia | K25: 6.2 | L25: 4.75
A26: Phoenix | B26: 0.055 | C26: 0.0722 | D26: -0.0001169211248 | E26: 0.0001728737997 | F26: 7.907820302e-05 | H26: delinquent | J26: Phoenix | K26: 5.5 | L26: 7.22
A27: Portland | B27: 0.065 | C27: 0.0379 | D27: 7.998628258e-05 | E27: 9.910836763e-06 | F27: 0.0006455363512 | H27: loans go up if | J27: Portland | K27: 6.5 | L27: 3.79
A28: Raleigh | B28: 0.06 | C28: 0.0362 | D28: 0.0002208751715 | E28: 6.639231824e-05 | F28: 0.0007348115364 | H28: the jobless rate | J28: Raleigh | K28: 6 | L28: 3.62
A29: Sacramento | B29: 0.083 | C29: 0.0924 | D29: 0.0004320788752 | E29: 0.0002205775034 | F29: 0.0008463789438 | H29: went up. | J29: Sacramento | K29: 8.3 | L29: 9.24
A30: St. Louis | B30: 0.075 | C30: 0.044 | D30: -0.0001322914952 | E30: 4.69478738e-05 | F30: 0.0003727759808 | J30: St. Louis | K30: 7.5 | L30: 4.4
A31: San Diego | B31: 0.071 | C31: 0.0691 | D31: 1.651961591e-05 | E31: 8.133058985e-06 | F31: 3.355412894e-05 | H31: b | J31: San Diego | K31: 7.1 | L31: 6.91
A32: San Francisco | B32: 0.068 | C32: 0.0557 | D32: 1.12702332e-06 | E32: 2.19478738e-08 | F32: 5.787264746e-05 | J32: San Francisco | K32: 6.8 | L32: 5.57
A33: Seattle | B33: 0.055 | C33: 0.0387 | D33: 0.0003235418381 | E33: 0.0001728737997 | F33: 0.0006055244993 | J33: Seattle | K33: 5.5 | L33: 3.87
A34: Tampa | B34: 0.075 | C34: 0.0842 | D34: 0.0001431529492 | E34: 4.69478738e-05 | F34: 0.0004365004252 | J34: Tampa | K34: 7.5 | L34: 8.42
C36: Total | D36: =SUM(D8:D34) -> 0.00255517037 | E36: 0.002577407407 | F36: 0.01300593852
C37: Covariance | D37: =D36/$B$4 -> 9.827578348e-05 | E37: 9.913105413e-05 | F37: 0.0005002284046
C38: Coefficient of Correlation | D38: =D37/PRODUCT(E40:F40) -> 0.4413239314 | J38: Xbar | K38: y | L38: x | M38: Yabr
J39: =$B$1 -> 0.06814814815 | K39: 0 | L39: 0 | M39: =$C$1 -> 0.06330740741
D40: SD | E40: =SQRT(E37) -> 0.009956457911 | F40: =SQRT(F37) -> 0.02236578647 | J40: =$B$1 -> 0.06814814815 | K40: 0.14 | L40: 0.1 | M40: 0.06330740741

Sheet 50
A1: Daily % increase/decrease from 9 days over last three months
A3: Mean | B3: =AVERAGE(B10:B18) -> 0.0016 | C3: =AVERAGE(C10:C18) -> 0.0013
A4: Count = n | B4: =COUNT(B10:B18) -> 9
A5: n-1 | B5: =B4-1 -> 8
A6: SD | B6: =_xlfn.STDEV.S(B10:B18) -> 0.006120049019 | C6: 0.005574495493 | H6: a
B8: x | C8: y | D8: (x-Xbar)*(y-Ybar)
B9: DJIA | C9: S&P 500 | D9: Deviation in x * Deviation in y
B10: 0.002 | C10: 0.0024 | D10: =(B10-$B$3)*(C10-$C$3) -> 4.4e-07
B11: 0.0082 | C11: 0.0019 | D11: 3.96e-06
B12: -0.0099 | C12: -0.0091 | D12: 0.0001196
B13: 0.0004 | C13: 0.0008 | D13: 6e-07
B14: -0.0024 | C14: -0.0033 | D14: 1.84e-05
B15: 0.0101 | C15: 0.0087 | D15: 6.29e-05
B16: 0.003 | C16: 0.0036 | D16: 3.22e-06
B17: 0.0055 | C17: 0.0083 | D17: 2.73e-05
B18: -0.0025 | C18: -0.0016 | D18: 1.189e-05
D20: =SUM(D10:D18) -> 0.00024831
C21: Covariance | D21: =D20/B5 -> 3.103875e-05
B22: b | C22: Coefficient of Correlation | D22: =D21/PRODUCT(B6:C6) -> 0.9097954354
B24: c | C24: The DJIA and the S & P 500 are atrongly correlated. When one goes up, the other tends to go up; and when one goes down, the other tends to go down.
C25: The general movement of the market can be ascertained by looking at one or the other.
B27: Check
C28: Covariance | D28: =_xlfn.COVARIANCE.S(C10:C18,B10:B18) -> 3.103875e-05 | E28: =D28=D21 -> TRUE
C29: Coefficient of Correlation | D29: =CORREL(C10:C18,B10:B18) -> 0.9097954354 | E29: =D29=D22 -> TRUE

Sheet Ch04==>>

Sheet 1,15
A1: a | I1: Xbar | J1: y | K1: x | L1: Yabr
I2: =$B$16 -> 3 | J2: 0 | K2: 0 | L2: =$C$16 -> 8
I3: 3 | J3: 15 | K3: 6 | L3: 8
A12: b | B12: The relationship is direct or positive: as x increases, y increases
A13: c | B13: See chart
A14: d
A16: Mean | B16: =AVERAGE(B22:B26) -> 3 | C16: 8
A17: SD | B17: =_xlfn.STDEV.S(B22:B26) -> 1.58113883 | C17: 4.472135955
A18: Count | B18: =COUNT(B22:B26) -> 5
A19: Count - 1 | B19: =B18-1 -> 4
B21: xi | C21: yi | D21: (xi - Xbar) | E21: (yi - Ybar) | F21: =D21&"*"&E21 -> (xi - Xbar)*(yi - Ybar) | G21: =D21&"^2" -> (xi - Xbar)^2
B22: 1 | C22: 3 | D22: =(B22-B$16) -> -2 | E22: -5 | F22: =E22*D22 -> 10 | G22: =D22^2 -> 4
B23: 2 | C23: 7 | D23: -1 | E23: -1 | F23: 1 | G23: 1
B24: 3 | C24: 5 | D24: 0 | E24: -3 | F24: 0 | G24: 0
B25: 4 | C25: 11 | D25: 1 | E25: 3 | F25: 3 | G25: 1
B26: 5 | C26: 14 | D26: 2 | E26: 6 | F26: 12 | G26: 4
F27: =SUM(F22:F26) -> 26 | G27: =SUM(G22:G26) -> 10
D30: Slope | E30: b1 | F30: =F27/G27 -> 2.6
D31: Intercept | E31: B0 | F31: =C16-B16*F30 -> 0.2
D33: Slope | E33: b1 | F33: =SLOPE($C$22:$C$26,$B$22:$B$26) -> 2.6
D34: Intercept | E34: B0 | F34: =INTERCEPT($C$22:$C$26,$B$22:$B$26) -> 0.2
C36: d | D36: Equation: | E36: Predicted y = | F36: =ROUND(F31,1)&" + "&F30&"*xi" -> 0.2 + 2.6*xi
E37: x | F37: 4
C38: e | E38: Predicted y = | F38: =F31+F30*F37 -> 10.6
A40: #15:
D41: Covariance | E41: Sxy | F41: =F27/B19 -> 6.5
D43: Covariance | E43: Sxy | F43: =_xlfn.COVARIANCE.S(C22:C26,B22:B26) -> 6.5
A45: (Strength and Direction of Relationship) | D45: Coefficient of Correlation | E45: rxy | F45: =F43/PRODUCT(B17:C17) -> 0.9192388155
D47: Coefficient of Correlation | E47: rxy | F47: =PEARSON(C22:C26,B22:B26) -> 0.9192388155
A49: % of variability in y that can be explained by the linear relationship | D49: Coefficient of Determination | E49: r2 | F49: =F47^2 -> 0.845
B51: =B21 -> xi | C51: yi | D51: Ypredicted | E51: (yi - Yabr)^2 | F51: (yi - Ypredicted)^2
B52: 1 | C52: 3 | D52: =$F$31+$F$30*B52 -> 2.8 | E52: =(C52-$C$16)^2 -> 25 | F52: =(C52-D52)^2 -> 0.04 | G52: =(D52-$C$16)^2 -> 27.04
B53: 2 | C53: 7 | D53: =$F$31+$F$30*B53 -> 5.4 | E53: =(C53-$C$16)^2 -> 1 | F53: =(C53-D53)^2 -> 2.56 | G53: =(D53-$C$16)^2 -> 6.76
B54: 3 | C54: 5 | D54: 8 | E54: =(C54-$C$16)^2 -> 9 | F54: 9 | G54: 0
B55: 4 | C55: 11 | D55: 10.6 | E55: =(C55-$C$16)^2 -> 9 | F55: 0.16 | G55: 6.76
B56: 5 | C56: 14 | D56: 13.2 | E56: =(C56-$C$16)^2 -> 36 | F56: 0.64 | G56: 27.04
B57: a | C57: SST | E57: =SUM(E52:E56) -> 80
E58: SSE | F58: =SUM(F52:F56) -> 12.4
F59: SSR | G59: =SUM(G52:G56) -> 67.6
D61: b | E61: Coefficient of Determination | F61: r2 | G61: =G59/E57 -> 0.845 | H61: This is a good fit. When SSE is zero, the predicted and
D62: c | E62: Coefficient of Correlation | F62: r | G62: =SQRT(G61) -> 0.9192388155 | H62: observed values are equal and thus SSR/SST would equal 1, a
H63: perfect Fit. So since r^2 is .845, this is a good fit.

Sheet 6
B1: Xbar | C1: Ybar
A2: Mean | B2: =AVERAGE(A19:A28) -> 87.4 | C2: =AVERAGE(B19:B28) -> 6.64 | E2: Xbar | H2: Ybar
B3: n -1
A4: n -1 | B4: =COUNT(A19:A28)-1 -> 9
B5: Sample SD x | C5: Sample SD y
A6: Sample SD | B6: =_xlfn.STDEV.S(A19:A28) -> 23.92674004 | C6: =_xlfn.STDEV.S(B19:B28) -> 0.7974960815 | E6: =$B$2 -> 87.4 | F6: 0 | G6: 0 | H6: =$C$2 -> 6.64
A7: Sample Covariance | B7: =_xlfn.COVARIANCE.S(B19:B28,A19:A28) -> -15.07333333 | E7: 87.4 | F7: =ROUNDUP(MAX(B19:B28),0) -> 8 | G7: =CEILING(MAX(A19:A28),5) -> 140 | H7: 6.64
A8: Coefficient of Correlation | B8: =PEARSON(B19:B28,A19:A28) -> -0.7899456546
A9: Coefficient of Determination | B9: =RSQ(B19:B28,A19:A28) -> 0.6240141371
A10: Slope | B10: =SLOPE(B19:B28,A19:A28) -> -0.02632947753
A11: Intercept | B11: =INTERCEPT(B19:B28,A19:A28) -> 8.941196336
A13: a
A14: b | B14: Relationship is negative (inverse), as miles increase, price decreases | L14: Variation | N14: Variation
L15: Not Explained | N15: Explained
L16: by Model | N16: by Model
A17: x | B17: y | C17: x Deviation | D17: y Deviation | E17: =C17&"^2" -> x Deviation^2 | F17: y Deviation^2 | G17: Mult Deviations | H17: Predicted y values | K17: Residual | L17: Residual Squared
A18: Miles (1000s) | B18: Price ($1000s) | C18: (x - Xbar) | D18: (y - Ybar) | E18: (x - Xbar)^2 | F18: (y - Ybar)^2 | G18: =C18&"*"&D18 -> (x - Xbar)*(y - Ybar) | H18: ="y Predicted = "&ROUND(G33,2)&" + "&ROUND(G32,3)&"*x" -> y Predicted = 8.94 + -0.026*x | K18: y - y Predicted | L18: ="("&K18&")^2" -> (y - y Predicted)^2 | N18: (y Predicted - Ybar)
A19: 57 | B19: 7 | C19: =A19-B$2 -> -30.4 | D19: =B19-C$2 -> 0.36 | E19: =C19^2 -> 924.16 | F19: =D19^2 -> 0.1296 | G19: =C19*D19 -> -10.944 | H19: =$G$33+A19*$G$32 -> 7.440416117 | K19: =B19-H19 -> -0.4404161168 | L19: =K19^2 -> 0.1939663559 | N19: =(H19-$C$2)^2 -> 0.64066596
A20: 59 | B20: 7.5 | C20: -28.4 | D20: 0.86 | E20: 806.56 | F20: 0.7396 | G20: -24.424 | H20: 7.387757162 | K20: 0.1122428383 | L20: 0.01259845475 | N20: 0.5591407729
A21: 66 | B21: 6.6 | C21: -21.4 | D21: -0.04 | E21: 457.96 | F21: 0.0016 | G21: 0.856 | H21: 7.203450819 | K21: -0.603450819 | L21: 0.364152891 | N21: 0.3174768255
A22: 87 | B22: 7.2 | C22: -0.4 | D22: 0.56 | E22: 0.16 | F22: 0.3136 | G22: -0.224 | H22: 6.650531791 | K22: 0.549468209 | L22: 0.3019153127 | N22: 0.0001109186219
A23: 87 | B23: 7.2 | C23: -0.4 | D23: 0.56 | E23: 0.16 | F23: 0.3136 | G23: -0.224 | H23: 6.650531791 | K23: 0.549468209 | L23: 0.3019153127 | N23: 0.0001109186219
A24: 90 | B24: 7 | C24: 2.6 | D24: 0.36 | E24: 6.76 | F24: 0.1296 | G24: 0.936 | H24: 6.571543358 | K24: 0.4284566416 | L24: 0.1835750937 | N24: 0.004686311774
A25: 90 | B25: 7 | C25: 2.6 | D25: 0.36 | E25: 6.76 | F25: 0.1296 | G25: 0.936 | H25: 6.571543358 | K25: 0.4284566416 | L25: 0.1835750937 | N25: 0.004686311774
A26: 94 | B26: 6.4 | C26: 6.6 | D26: -0.24 | E26: 43.56 | F26: 0.0576 | G26: -1.584 | H26: 6.466225448 | K26: -0.06622544833 | L26: 0.004385810007 | N26: 0.03019759481
A27: 106 | B27: 5.4 | C27: 18.6 | D27: -1.24 | E27: 345.96 | F27: 1.5376 | G27: -23.064 | H27: 6.150271718 | K27: -0.750271718 | L27: 0.5629076509 | N27: 0.2398337902
A28: 138 | B28: 5.1 | C28: 50.6 | D28: -1.54 | E28: 2560.36 | F28: 2.3716 | G28: -77.924 | H28: 5.307728437 | K28: -0.2077284372 | L28: 0.04315110364 | N28: 1.774947517
D29: Total / SST | E29: =SUM(E19:E28) -> 5152.4 | F29: =SUM(F19:F28) -> 5.724 | G29: -135.66 | K29: SSE | L29: =SUM(L19:L28) -> 2.152143079 | M29: SSR | N29: =SUM(N19:N28) -> 3.571856921
D30: SD | E30: =SQRT(E29/$B$4) -> 23.92674004 | F30: =SQRT(F29/$B$4) -> 0.7974960815 | K30: Measure of how clustered the
K31: observations are around | N31: Check r^2:
E32: c | F32: Slope | G32: =G29/E29 -> -0.02632947753 | K32: Regression Line (Not | N32: =N29/F29 -> 0.6240141371
F33: Intercept | G33: =C2-B2*G32 -> 8.941196336 | K33: Explained Part)
E34: d | F34: For every one unit of increares in x (1000s miles), y decreases by -0.026 ($1000).
F35: For evey 1 mile increase, the model predicts that the price will drop by 2.6 cents | K35: Covariance | L35: =G29/B4 -> -15.07333333 | M35: Strength of Relationship
F36: For every100 miles on the car, the estimated price will drop by $26. | K36: Coefficient of Correlation | L36: =L35/PRODUCT(E30:F30) -> -0.7899456546 | M36: Strength and Direction of Relationship (between -1 and 1)
E37: e | K37: Coefficient of Determination | L37: =L36^2 -> 0.6240141371 | M37: Goodness of fit of model: % of variation in y values that model can explain
E38: x | F38: 100 | M38: (Between 0 and 1)
E39: Predicted y | F39: =G33+G32*F38 -> 6.308248583 | M39: Coefficient of Determination = How well does the
F40: =F39*1000 -> 6308.248583 | M40: estimated regression line fit the data? = Measure of the goodness of fit for
M41: the estimated regression line = A number between 0 and +1. Can be used
M42: your nonlinear relationships as well as linear.
M44: SST How well observations clustered around Y bar

Sheet 5,22
A1: Mean | B1: =AVERAGE(B7:B14) -> 1875 | C1: 74
A2: Sample Size | B2: =COUNT(B7:B14) -> 8 | C2: 8
A3: Sample Size - 1 | B3: =B2-1 -> 7 | C3: 7 | D3: <<== Only 1 Independent Variable
D4: Standard Deviation Calculation | I4: Covariance, Coefficient of Correlation, Coefficient of Determination
B5: x | C5: f(x) = y | D5: x Deviation | E5: y Deviation | F5: =D5&"^2" -> x Deviation^2 | G5: y Deviation^2 | I5: Deviations Multiplied
A6: Brand and Model | B6: Price | C6: Rating | D6: (x - Xbar) | E6: (y - Ybar) | F6: (x - Xbar)^2 | G6: (y - Ybar)^2 | I6: =D6&" * "&E6 -> (x - Xbar) * (y - Ybar)
A7: Precor 5.31 | B7: 3700 | C7: 87 | D7: =B7-B$1 -> 1825 | E7: 13 | F7: =D7^2 -> 3330625 | G7: 169 | I7: =D7*E7 -> 23725
A8: Keys Fitness CG2 | B8: 2500 | C8: 84 | D8: 625 | E8: 10 | F8: 390625 | G8: 100 | I8: 6250
A9: Octane Fitness Q37e | B9: 2800 | C9: 82 | D9: 925 | E9: 8 | F9: 855625 | G9: 64 | I9: 7400
A10: LifeFitness X1 Basic | B10: 1900 | C10: 74 | D10: 25 | E10: 0 | F10: 625 | G10: 0 | I10: 0
A11: NordicTrack AudioStrider 990 | B11: 1000 | C11: 73 | D11: -875 | E11: -1 | F11: 765625 | G11: 1 | I11: 875
A12: Schwinn 430 | B12: 800 | C12: 69 | D12: -1075 | E12: -5 | F12: 1155625 | G12: 25 | I12: 5375
A13: Vision Fitness X6100 | B13: 1700 | C13: 68 | D13: -175 | E13: -6 | F13: 30625 | G13: 36 | I13: 1050
A14: ProForm XP 520 Razor | B14: 600 | C14: 55 | D14: -1275 | E14: -19 | F14: 1625625 | G14: 361 | I14: 24225
C15: Total | D15: =SUM(D7:D14) -> 0 | E15: 0 | F15: =SUM(F7:F14) -> 8155000 | G15: 756 | H15: Total | I15: =SUM(I7:I14) -> 68900
E16: Sample Standard Deviation | F16: =SQRT(F15/B3) -> 1079.351657 | G16: =SQRT(G15/C3) -> 10.39230485 | H16: Covariance | I16: =I15/B3 -> 9842.857143
E17: Check: | F17: =_xlfn.STDEV.S(B7:B14) -> 1079.351657 | G17: =_xlfn.STDEV.S(C7:C14) -> 10.39230485 | H17: Covariance | I17: =_xlfn.COVARIANCE.S(C7:C14,B7:B14) -> 9842.857143
I18: Q1 and Q3 Majority, so positive relationship
A19: a | H19: Coefficient of Correlation | I19: =I16/PRODUCT(F16:G16) -> 0.8774984166
B20: X bar | E20: Y bar | H20: Coefficient of Correlation | I20: =PEARSON(C7:C14,B7:B14) -> 0.8774984166
B21: =$B$1 -> 1875 | C21: 0 | D21: 0 | E21: =$C$1 -> 74 | I21: Strong positive Correlation (not causation)
B22: =$B$1 -> 1875 | C22: =MAX(C7:C14) -> 87 | D22: =MAX(B7:B14) -> 3700 | E22: =$C$1 -> 74 | H22: Slope | I22: =I15/F15 -> 0.008448804414
I23: For every $1 in Price increase, we see 8/10 of a point
I24: increase in Rating
H25: Check: | I25: =SLOPE(C7:C14,B7:B14) -> 0.008448804414
H27: Intercept | I27: =C1-B1*I22 -> 58.15849172
I28: Estimated Line Crosses at 58 rating
H29: Check: | I29: =INTERCEPT(C7:C14,B7:B14) -> 58.15849172
G31: c | H31: Equation: | I31: ="Predicted y = "&ROUND(I29,3)&" + "&ROUND(I25,4)&" * x" -> Predicted y = 58.158 + 0.0084 * x
H33: x = | I33: 1500
G34: d | H34: ="F( "&DOLLAR(I33,0)&" ) =" -> F( $1,500 ) = | I34: =I29+I25*I33 -> 70.83169834
H36: ="At "&DOLLAR(I33)&" Price (Predictor Variable), the Estimates Simple Linear Regression Equarion predictes that the Rating would be "&ROUND(I34,2) -> At $1,500.00 Price (Predictor Variable), the Estimates Simple Linear Regression Equarion predictes that the Rating would be 70.83
G40: b | H40: Given the strong positive liner relationship between Price and Rating, the Quality sign seems reasonable
A43: #22:
A45: Coefficient of Determination
A46: Observed x | B46: Observed y | C46: Predicted y | D46: Residuals | E46: Residuals Squared | F46: Error from Using Ybar to Estimate Rating: y Deviation | G46: Squared Deviation
A47: =B6 -> Price | B47: Rating | C47: =I31 -> Predicted y = 58.158 + 0.0084 * x | D47: (yi - Predicted y) | E47: =D47&"^2" -> (yi - Predicted y)^2 | F47: (yi - Ybar) | G47: =F47&"^2" -> (yi - Ybar)^2
A48: 3700 | B48: 87 | C48: =$I$27+$I$22*A48 -> 89.41906806 | D48: =B48-C48 -> -2.419068056 | E48: =D48^2 -> 5.851890262 | F48: =B48-$C$1 -> 13 | G48: =F48^2 -> 169
A49: 2500 | B49: 84 | C49: 79.28050276 | D49: 4.719497241 | E49: 22.27365421 | F49: 10 | G49: 100
A50: 2800 | B50: 82 | C50: 81.81514408 | D50: 0.1848559166 | E50: 0.03417170991 | F50: 8 | G50: 64
A51: 1900 | B51: 74 | C51: 74.21122011 | D51: -0.2112201104 | E51: 0.04461393502 | F51: 0 | G51: 0
A52: 1000 | B52: 73 | C52: 66.60729614 | D52: 6.392703863 | E52: 40.86666268 | F52: -1 | G52: 1
A53: 800 | B53: 69 | C53: 64.91753525 | D53: 4.082464746 | E53: 16.6665184 | F53: -5 | G53: 25
A54: 1700 | B54: 68 | C54: 72.52145923 | D54: -4.521459227 | E54: 20.44359355 | F54: -6 | G54: 36
A55: 600 | B55: 55 | C55: 63.22777437 | D55: -8.227774372 | E55: 67.69627111 | F55: -19 | G55: 361
D56: SSE | E56: =SUM(E48:E55) -> 173.8773758 | F56: =SUM(F48:F55) -> 0
F57: SST | G57: =SUM(G48:G55) -> 756
E58: a | F58: SSR | G58: =G57-E56 -> 582.1226242
E59: r^2 | F59: Coefficient of Determination | G59: =G58/G57 -> 0.7700034711 | H59: SSR/SST
E60: r^2 | F60: Coefficient of Determination | G60: =RSQ(B48:B55,A48:A55) -> 0.7700034711 | H60: RSQ function
E61: r^2 | F61: Coefficient of Determination | G61: =I19^2 -> 0.7700034711 | H61: (Coefficient of Correlation)^2
E63: b | F63: Yes, .77 is a reasonable fit. 77% of the variability has been explained
F64: by the Regression Line.
E66: c
E67: r | F67: =SQRT(G61) -> 0.8774984166
F68: Strong, positive relationship

Sheet 7,19
I2: 07:00:00
B6: Xbar | E6: Ybar
B7: =$B$26 -> 7 | C7: 0 | D7: 0 | E7: =$C$26 -> 108
B8: =$B$26 -> 7 | C8: =MAX(C29:C38) -> 136 | D8: =MAX(B29:B38) -> 13 | E8: 108
A23: n | B23: =COUNT(B29:B38) -> 10 | H23: Multiply to get | I23: 7 b
A24: n -1 | B24: =B23-1 -> 9 | D24: Partaicular x | E24: Partaicular y | F24: Used To Calc: | G24: Used To Calc: | H24: preponderance of signs for | I24: What model predicts | J24: Errors in Model | K24: Used To Calc: | L24: Used To Calc:
B25: Xbar | C25: Ybar | D25: minus | E25: minus | F25: 1) x Sample SD | G25: 1) y Sample SD | H25: Relationship | J25: as compared to | K25: 1) SSE | L25: 1) SSR
A26: Mean | B26: =AVERAGE(B29:B38) -> 7 | C26: 108 | D26: Mean | E26: Mean | F26: 2) Slope | G26: 2) SST | H26: Cov, Corr, Slope | J26: Observed y
B27: x | C27: Observed y | D27: (x Deviation) | E27: (y Deviation) | F27: =D27&"^2" -> (x Deviation)^2 | G27: (y Deviation)^2 | H27: =D27&"*"&E27 -> (x Deviation)*(y Deviation) | I27: Predicted y | J27: Residuals | K27: Residuals^2 | L27: Regression Error
B28: Years Worked | C28: Annual Sales ($1000) | D28: (x - Xbar) | E28: (y - Ybar) | F28: =D28&"^2" -> (x - Xbar)^2 | G28: =E28&"^2" -> (y - Ybar)^2 | H28: =D28&"*"&E28 -> (x - Xbar)*(y - Ybar) | I28: Predicted y = B0 + b1*x1 | J28: (y1 - Predicted y) | K28: =J28&"^2" -> (y1 - Predicted y)^2 | L28: (Predicted y - Ybar)^2
B29: 1 | C29: 80 | D29: =B29-B$26 -> -6 | E29: =C29-C$26 -> -28 | F29: =D29^2 -> 36 | G29: =E29^2 -> 784 | H29: =D29*E29 -> 168 | I29: =$H$55+$H$53*B29 -> 84 | J29: =C29-I29 -> -4 | K29: =J29^2 -> 16 | L29: =(I29-$C$26)^2 -> 576
B30: 3 | C30: 97 | D30: -4 | E30: -11 | F30: 16 | G30: 121 | H30: 44 | I30: 92 | J30: 5 | K30: 25 | L30: 256
B31: 4 | C31: 92 | D31: -3 | E31: -16 | F31: 9 | G31: 256 | H31: 48 | I31: 96 | J31: -4 | K31: 16 | L31: 144
B32: 4 | C32: 102 | D32: -3 | E32: -6 | F32: 9 | G32: 36 | H32: 18 | I32: 96 | J32: 6 | K32: 36 | L32: 144
B33: 6 | C33: 103 | D33: -1 | E33: -5 | F33: 1 | G33: 25 | H33: 5 | I33: 104 | J33: -1 | K33: 1 | L33: 16
B34: 8 | C34: 111 | D34: 1 | E34: 3 | F34: 1 | G34: 9 | H34: 3 | I34: 112 | J34: -1 | K34: 1 | L34: 16
B35: 10 | C35: 119 | D35: 3 | E35: 11 | F35: 9 | G35: 121 | H35: 33 | I35: 120 | J35: -1 | K35: 1 | L35: 144
B36: 10 | C36: 123 | D36: 3 | E36: 15 | F36: 9 | G36: 225 | H36: 45 | I36: 120 | J36: 3 | K36: 9 | L36: 144
B37: 11 | C37: 117 | D37: 4 | E37: 9 | F37: 16 | G37: 81 | H37: 36 | I37: 124 | J37: -7 | K37: 49 | L37: 256
B38: 13 | C38: 136 | D38: 6 | E38: 28 | F38: 36 | G38: 784 | H38: 168 | I38: 132 | J38: 4 | K38: 16 | L38: 576
D39: =SUM(D29:D38) -> 0 | E39: 0 | L39: =SUM(L29:L38) -> 2272
E40: Σ(x - Xbar)^2 | F40: =SUM(F29:F38) -> 142 | I40: 19 a | J40: SSE = Σ(y - y Predicted)^2 | K40: =SUM(K29:K38) -> 170 | L40: How Well observations cluster around Estimated Line (not explained part)
F41: Σ(y - Ybar)^2 | G41: =SUM(G29:G38) -> 2442 | J41: SST = Σ(y - Ybar)^2 | K41: =G41 -> 2442 | L41: How well observations cluster around Ybar Line (Total Deviation)
G42: Σ(x - Xbar)*(y - Ybar) | H42: =SUM(H29:H38) -> 568 | J42: SSR | K42: =K41-K40 -> 2272 | L42: Explained Part of the variation
I43: 19 b | J43: r^2 = Coefficient of Determination | K43: =K42/K41 -> 0.9303849304 | L43: Goodness of fit for model is high. Between 0 and 1. At SSE = 0,
E44: Sample SD x | F44: =SQRT(F40/B24) -> 3.972125096 | G44: SQRT((Σ(x - Xbar)^2)/(n-1) | H44: How Clustered are the data points around Mean | L44: Particular and Predicted are the same and model preditcs perfectly.
E45: Check: | F45: =_xlfn.STDEV.S(B29:B38) -> 3.972125096 | L45: The closer this is to 1, the better the fit. So this is a good fit.
F46: Sample SD y | G46: =SQRT(G41/B24) -> 16.4721988 | H46: SQRT((Σ(y - Ybar)^2)/(n-1) | I46: How Clustered are the data points around Mean | L46: 93% of the variability in y is explained by the Regression Line.
F47: Check: | G47: =_xlfn.STDEV.S(C29:C38) -> 16.4721988 | I47: 19 c | J47: r = Coefficient of Correlation | K47: =SQRT(K43) -> 0.9645646326 | L47: Strength and direction of linear relationship (between -1 and 1)
J48: Check: | K48: =RSQ(C29:C38,B29:B38) -> 0.9303849304
G49: Covariance | H49: =H42/B24 -> 63.11111111 | I49: (Σ(x - Xbar)*(y - Ybar)/(n-1) | J49: Measures strength of relationship, but problem with units
G50: Check: | H50: =_xlfn.COVARIANCE.S(C29:C38,B29:B38) -> 63.11111111
G51: Coefficient of Correlation | H51: =H49/PRODUCT(F44,G46) -> 0.9645646326 | I51: (Σ(x - Xbar)*(y - Ybar)/(n-1)/(SDx*Sdy) | K51: Measures Strength and Direction of relationship (-1 to 1)
G52: Check: | H52: =PEARSON(C29:C38,B29:B38) -> 0.9645646326
G53: Slope | H53: =H42/F40 -> 4 | I53: b1 = (Σ(x - Xbar)*(y - Ybar)/(n-1)/(Σ(x - Xbar)^2) | K53: For every 1 unit of x, how does y move?
G54: Check: | H54: =SLOPE(C29:C38,B29:B38) -> 4
G55: Intercept | H55: =C26-B26*H53 -> 80 | I55: b0 = Ybar - Xbar*b1 | K55: Where Estimated Regression Line Crosses y-axis
G56: Check: | H56: =INTERCEPT(C29:C38,B29:B38) -> 80
G58: 7 c
G59: x | H59: 9 | I59: years
G60: Predicted y | H60: =H55+H59*H53 -> 116 | I60: Annual Sales ($1000)
